[Event "2nd Serbia Open Masters 2022"]
[Site "Novi Sad"]
[Date "2022.06.28"]
[Round "1.25"]
[White "Ferreira, Jorge Viterbo"]
[Black "Mitev, Valentin"]
[Result "1-0"]
[ECO "A36"]
[WhiteElo "2512"]
[BlackElo "2281"]
[Annotator "TA"]
[PlyCount "83"]
[EventDate "2022.06.28"]
[EventType "swiss"]
[EventCountry "SRB"]
[SourceTitle "playchess.com"]
[Source "ChessBase"]
[SourceQuality "1"]
[TimeControl "40/5400+30:900+30"]

{[%evp 9,83,8,16,2,6,12,61,51,60,54,91,77,97,81,98,95,97,95,106,92,111,115,112,104,88,102,117,52,39,51,50,39,42,35,64,12,64,-49,47,0,121,104,121,121,117,122,189,147,200,198,193,127,147,32,140,144,595,641,647,642,635,633,635,628,762,727,1334,1248,847,823,1821,1641,2369,2106,2907,2458]} 1. c4 {[%emt 0:00:03]} c5 {[%emt 0:00:24]} 2. g3 {[%emt 0:00:17]} Nc6 {[%emt 0:00:42]} 3. Bg2 {[%emt 0:00:14]} g6 {[%emt 0:00:18]} 4. Nc3 {[%emt 0:00:16]} Bg7 {[%emt 0:00:18]} 5. a3 {[%emt 0:00:26]} b6 {[%emt 0:01:18]} 6. e3 {[%emt 0:02:09][%cal Be2e3,Be3e4][%mdl 32] A36: Symmetrical English vs ...g6: 4 Bg2 Bg7.} Bb7 {[%emt 0:04:51]} 7. Nge2 {[%emt 0:01:09]} e5 {[%emt 0:03:43]} (7... e6 $11 {is more appropriate.}) 8. d4 $14 {[%emt 0:05:57] [#] White is slightly better.} d6 $146 {[%emt 0:11:22][%cal Rc5d4]} ({Predecessor:} 8... cxd4 9. exd4 d6 10. Qa4 Qd7 11. dxe5 dxe5 12. Bg5 Na5 13. Nb5 Kf8 14. Qb4+ Ne7 15. Rd1 Qe6 16. Nc7 {1-0 (16) Kaid,A (2260)-Wanner,L (2107) Germany 2020}) 9. d5 {[%emt 0:11:13]} Nce7 {[%emt 0:08:26][%cal Bc6e7,Be7g8,Bg8f6][%mdl 32]} 10. e4 {[%emt 0:02:37]} h5 {[%emt 0:16:42]} 11. h3 {[%emt 0:08:10]} Nf6 {[%emt 0:13:52]} 12. Be3 {[%emt 0:06:13]} Nd7 {[%emt 0:06:20]} 13. Qd2 {[%emt 0:05:49]} a6 {[%emt 0:01:29]} 14. a4 {[%emt 0:02:36]} Ng8 {[%emt 0:04:43]} 15. O-O {[%emt 0:09:21]} Bh6 {[%emt 0:06:55]} 16. f4 {[%emt 0:17:41]} h4 {[%emt 0:00:08]} 17. g4 {[%emt 0:01:10] White is more active.} exf4 {[%emt 0:00:05]} 18. Nxf4 {[%emt 0:00:49]} (18. Bxf4 $16 {aiming for g5.} Ne5 19. g5) 18... Ne5 {[%emt 0:00:58]} 19. b3 {[%emt 0:00:12]} Nf6 {[%emt 0:02:06]} 20. Nd1 {[%emt 0:03:14]} (20. Rf2 {with more complications.} O-O 21. Nh5 Nfxg4 22. Bxh6 Nxf2 23. Nf4) 20... Nfd7 {[%emt 0:05:28]} 21. Nb2 {[%emt 0:00:29]} Qe7 {[%emt 0:02:07]} 22. a5 {[%emt 0:04:44]} (22. Rae1 $14) 22... b5 {[%emt 0:01:09]} (22... bxa5 $11 23. Nbd3 O-O) 23. b4 {[%emt 0:00:47]} ({Better is} 23. Rf2 $14) 23... bxc4 {[%emt 0:01:15]} (23... cxb4 $1 $15 24. Qxb4 O-O) 24. Rac1 {[%emt 0:00:54]} (24. bxc5 $14 Nxc5 25. Bxc5 dxc5 26. Rac1) 24... O-O {[%emt 0:01:04]} (24... cxb4 $11 {remains equal.} 25. Qxb4 O-O) 25. bxc5 $16 {[%emt 0:05:17]} Nxc5 {[%emt 0:00:13]} 26. Bxc5 {[%emt 0:00:25]} dxc5 {[%emt 0:00:03]} (26... c3 $2 {[#]} 27. Rxc3 $1 (27. Qxc3 dxc5 28. Qxc5 Qxc5+ 29. Rxc5 Rac8 $14) 27... Bxf4 28. Qxf4 $18) 27. Nxg6 $1 {[%emt 0:00:54][%mdl 64] [#] Discovered Attack} (27. Nxc4 Nxc4 28. Rxc4 Rfe8) 27... fxg6 {[%emt 0:02:57]} (27... Bxd2 $16 {might work better.} 28. Nxe7+ Kg7) 28. Qxh6 $18 {[%emt 0:00:07] The board is on fire.} Rxf1+ {[%emt 0:00:02]} 29. Rxf1 {[%emt 0:03:09][%cal Ob2c4] Threatens to win with Nxc4!} (29. Bxf1 Nf3+ 30. Kf2 (30. Kg2 $2 Qxe4 31. Kf2 Rf8 $19) 30... Qxe4 $15) 29... Rf8 {[%emt 0:01:44]} 30. Rxf8+ {[%emt 0:05:39]} ({Worse is} 30. Nxc4 Nxc4 31. Rxf8+ (31. Qxg6+ Qg7 $11) 31... Qxf8 $11) (30. Qxf8+ $18 Qxf8 31. Rxf8+ Kxf8 32. Na4) 30... Qxf8 $16 {[%emt 0:00:01]} 31. Qe3 {[%emt 0:00:22]} ({Avoid the trap} 31. Qxh4 $2 c3 32. Nc4 Nxc4 $19) (31. Qxf8+ $16 Kxf8 32. Na4) 31... Qd6 {[%emt 0:01:43]} (31... Qf6 $1 $14) 32. Qc3 {[%emt 0:01:57]} Qf6 $2 {[%emt 0:01:07][%mdl 8192] This costs Black the game.} (32... Qc7 $16 {is more resistant.} 33. Bf1 (33. Nxc4 Nxc4 34. Qxc4 Qxa5 $16) 33... Qe7 34. Nxc4 Nxc4) 33. Nxc4 $18 {[%emt 0:00:38] White is clearly winning.} Nxg4 {[%emt 0:00:03]} 34. Qxf6 {[%emt 0:01:31]} Nxf6 {[%emt 0:00:03][%mdl 4096] Endgame KBN-KBN} 35. Nd6 {[%emt 0:00:31]} Ba8 {[%emt 0:00:04]} 36. Bf1 {[%emt 0:00:36]} Kf8 {[%emt 0:02:14]} 37. Bxa6 {[%emt 0:00:05]} Nd7 {[%emt 0:01:53]} 38. Bb5 {[%emt 0:00:45]} Ne5 {[%emt 0:01:00]} 39. a6 {[%emt 0:00:14]} Nf3+ {[%emt 0:00:35]} 40. Kf2 {[%emt 0:00:00]} Nd4 {[%emt 0:00:00]} 41. Bc4 {[%emt 0:02:26]} Ke7 {[%emt 0:00:59]} 42. Nc8+ {[%emt 0:00:00] Weighted Error Value: White=0.24 (precise) /Black=0.57} 1-0

[Event "2nd Serbia Open Masters 2022"]
[Site "Novi Sad"]
[Date "2022.06.28"]
[Round "1.26"]
[White "Arpita, Mukherjee"]
[Black "Muradli, Mahammad"]
[Result "1-0"]
[ECO "B52"]
[WhiteElo "2275"]
[BlackElo "2539"]
[Annotator "TA"]
[PlyCount "55"]
[EventDate "2022.06.28"]
[EventType "swiss"]
[EventCountry "SRB"]
[SourceTitle "playchess.com"]
[Source "ChessBase"]
[SourceQuality "1"]
[TimeControl "40/5400+30:900+30"]

{[%evp 14,55,9,13,10,7,15,5,2,7,9,-20,-9,-13,-10,0,0,0,0,0,0,-11,19,12,13,0,327,348,435,427,517,522,500,522,491,260,1075,1029,1109,1045,1333,1169,2292,1250]} 1. e4 {[%emt 0:01:08]} c5 {[%emt 0:00:32]} 2. Nf3 {[%emt 0:00:12]} d6 {[%emt 0:00:07]} 3. Bb5+ {[%emt 0:00:17]} Bd7 {[%emt 0:00:14]} 4. Bxd7+ {[%emt 0:00:25]} Nxd7 {[%emt 0:01:05]} 5. O-O {[%emt 0:00:15]} Ngf6 {[%emt 0:00:04]} 6. Re1 {[%emt 0:00:15]} e6 {[%emt 0:01:12]} 7. d4 {[%emt 0:01:15]} cxd4 {[%emt 0:00:41]} 8. Nxd4 $1 {[%emt 0:00:12] 8.Nxd4 scores better than 8.Qxd4.} Rc8 {[%emt 0:04:51] B52: Sicilian: Moscow Variation with 3...Bd7.} 9. b3 {[%emt 0:01:09] [#]} Nc5 $146 {[%emt 0:07:06][%cal Bd7c5,Bc5a6,Ba6b4,Bb4c6][%mdl 32]} ({Predecessor:} 9... Be7 10. c4 O-O 11. Nc3 a6 12. Bb2 Qa5 13. Qe2 Ne5 14. a4 Nc6 15. Nc2 Qb6 16. Rab1 {1-0 (38) Pranav,V (2493)-Aronyak,G (2482) Chess.com INT 2022}) 10. f3 {[%emt 0:05:24]} d5 {[%emt 0:02:57][%cal Rd5e4] The position is equal.} 11. e5 {[%emt 0:01:43]} Nfd7 {[%emt 0:00:18]} 12. Bb2 {[%emt 0:01:00]} Be7 {[%emt 0:17:36]} 13. Nd2 {[%emt 0:01:17]} Qb6 {[%emt 0:20:45] White should prevent ...0-0.} 14. a4 $1 {[%emt 0:01:49]} Na6 {[%emt 0:04:15]} 15. Kh1 {[%emt 0:04:22]} Nb4 {[%emt 0:01:00]} 16. f4 {[%emt 0:05:43]} g6 {[%emt 0:02:23] Prevents f5.} 17. N2f3 {[%emt 0:00:49]} O-O {[%emt 0:04:00]} 18. Qd2 {[%emt 0:06:33]} Nc6 {[%emt 0:04:00]} 19. f5 $36 {[%emt 0:03:34][%mdl 2048] White has the initiative.} exf5 {[%emt 0:04:02][%mdl 8192]} (19... gxf5 $11 {and Black is okay.} 20. Nb5 Nc5) 20. e6 $18 {[%emt 0:04:12]} Nf6 {[%emt 0:02:06] [#]} 21. Nxf5 $1 {[%emt 0:00:51][%mdl 512]} fxe6 {[%emt 0:07:09]} (21... Ng4 22. Nxe7+) 22. Nh6+ {[%emt 0:00:10][%mdl 64] Zwischenzug} Kh8 {[%emt 0:04:50]} 23. Rxe6 {[%emt 0:00:19] And now Qxd5 would win.} d4 {[%emt 0:00:08]} 24. Ne5 {[%emt 0:08:55]} ({Not} 24. Bxd4 Rcd8 25. Bxb6 Rxd2 26. Nxd2 axb6 $18) (24. Nxd4 $142 Qd8 25. Rf1) 24... Bb4 $2 {[%emt 0:05:29]} (24... Qb4 25. Qe2 Nxe5) 25. Qg5 {[%emt 0:07:34] White is clearly winning.} Be7 {[%emt 0:02:42]} 26. Nxc6 {[%emt 0:04:16]} Rxc6 {[%emt 0:00:05]} 27. Rxe7 {[%emt 0:00:33] [#] Rf1 is the strong threat.} Rxc2 {[%emt 0:00:04]} 28. a5 {[%emt 0:05:22] Weighted Error Value: White=0.17 (very precise) /Black=0.45} 1-0

[Event "2nd Serbia Open Masters 2022"]
[Site "Novi Sad"]
[Date "2022.06.28"]
[Round "1.27"]
[White "Petkov, Momchil"]
[Black "Gajcin, Marina"]
[Result "1-0"]
[ECO "B31"]
[WhiteElo "2494"]
[BlackElo "2281"]
[Annotator "TA"]
[PlyCount "99"]
[EventDate "2022.06.28"]
[EventType "swiss"]
[EventCountry "SRB"]
[SourceTitle "playchess.com"]
[Source "ChessBase"]
[SourceQuality "1"]
[TimeControl "40/5400+30:900+30"]

{[%evp 17,99,29,6,15,16,0,10,0,0,0,0,0,12,0,14,0,5,0,28,19,15,11,28,0,11,15,16,16,18,-25,-26,-14,0,0,0,0,8,-43,0,0,0,-36,-34,-39,-46,-53,-13,-32,-35,-66,-20,-48,-29,-51,-41,-60,88,70,102,105,119,33,27,20,496,493,682,664,689,670,733,736,729,729,729,722,715,706,29985,29986,29990,29991,29995,29996]} 1. e4 {[%emt 0:00:13]} c5 {[%emt 0:00:09]} 2. Nf3 {[%emt 0:00:30]} Nc6 {[%emt 0:00:08]} 3. Bb5 {[%emt 0:00:19]} g6 {[%emt 0:01:31]} 4. O-O {[%emt 0:00:34]} Bg7 {[%emt 0:01:00]} 5. c3 {[%emt 0:00:32]} Nf6 {[%emt 0:00:40]} 6. Re1 {[%emt 0:00:37]} O-O {[%emt 0:00:46]} 7. d4 {[%emt 0:00:27]} cxd4 {[%emt 0:11:45]} 8. cxd4 {[%emt 0:00:08]} d5 {[%emt 0:01:47]} 9. e5 {[%emt 0:00:15]} Ne4 {[%emt 0:00:39]} 10. Be3 {[%emt 0:00:41] B31: Sicilian: 2...Nc6 3 Bb5 g6.} Qb6 {[%emt 0:06:26]} 11. Qe2 {[%emt 0:04:32]} a6 {[%emt 0:10:47] [#]} 12. Ba4 $146 {[%emt 0:02:51][%cal Bb5a4,Ba4c2,Bc2d3][%mdl 32] The position is equal.} ({Predecessor:} 12. Bxc6 bxc6 13. Nc3 Nxc3 14. bxc3 a5 15. Bc1 c5 16. Ba3 cxd4 17. Nxd4 Ba6 18. Qf3 {1-0 (35) Henriquez Villagra,C (2583)-Buksa,N (2173) Riga 2021}) 12... Na5 {[%emt 0:17:04]} 13. Nc3 {[%emt 0:16:31]} Nxc3 {[%emt 0:03:32]} 14. bxc3 {[%emt 0:02:33]} Qc7 {[%emt 0:03:44]} 15. Rac1 {[%emt 0:09:03]} Bd7 {[%emt 0:02:10]} 16. Bc2 {[%emt 0:00:57]} Nc4 {[%emt 0:07:54]} 17. Bf4 {[%emt 0:08:03]} Rad8 {[%emt 0:05:33]} 18. Bd3 {[%emt 0:06:53]} Qc8 {[%emt 0:03:32]} 19. Qc2 {[%emt 0:16:32]} Bb5 {[%emt 0:08:04]} 20. Qe2 {[%emt 0:07:44]} Bd7 {[%emt 0:02:38]} 21. Nh4 {[%emt 0:03:39]} Bg4 {[%emt 0:01:46]} 22. Qc2 {[%emt 0:03:04]} Bd7 {[%emt 0:01:49][%cal Bg4d7,Bd7e8,Be8g6][%mdl 32]} 23. Bg3 {[%emt 0:01:47]} Bh6 {[%emt 0:01:17]} 24. f4 {[%emt 0:00:20]} Qc6 {[%emt 0:01:15]} 25. Qe2 {[%emt 0:02:04]} f5 {[%emt 0:01:28]} 26. Nf3 {[%emt 0:01:00]} e6 {[%emt 0:01:11]} 27. h4 {[%emt 0:00:43]} ({Better is} 27. Rb1 $11) 27... Be8 {[%emt 0:00:31]} 28. Ng5 {[%emt 0:05:01]} Bg7 {[%emt 0:01:12]} 29. h5 {[%emt 0:01:31]} gxh5 {[%emt 0:00:13]} 30. Bh4 {[%emt 0:00:25][%cal Og5e6] [#] Hoping for Nxe6!} Rd7 {[%emt 0:00:36]} 31. Ra1 {[%emt 0:02:49][%cal Bc1a1,Ba1a2,Ba2b2,Bb2b6][%mdl 32]} Bg6 {[%emt 0:01:16]} 32. a4 {[%emt 0:00:31]} Na5 {[%emt 0:01:19]} 33. Reb1 {[%emt 0:02:11]} Re8 {[%emt 0:01:07]} (33... Rc8 $15) 34. Be1 {[%emt 0:01:08]} Rc7 {[%emt 0:00:36]} 35. Ra2 {[%emt 0:00:18]} Bf8 {[%emt 0:00:38]} 36. Rab2 {[%emt 0:00:47]} Nc4 {[%emt 0:00:38]} (36... Qxa4 $2 37. Ra2 Qd7 38. Rxa5 $18) (36... Qd7 $15 {stays ahead.}) 37. Bxc4 $16 {[%emt 0:00:31]} dxc4 {[%emt 0:00:28]} 38. Rb6 {[%emt 0:00:19]} Qd7 {[%emt 0:01:13]} 39. Qf3 {[%emt 0:00:26] White is more active.} (39. Bf2 $16) 39... h6 $14 {[%emt 0:00:27]} 40. Nh3 {[%emt 0:00:00][%cal Rb6b7]} Re7 $2 {[%emt 0:00:00][%mdl 8192] A mistake that costs the game.} (40... Rb8 $11 {and Black stays safe.}) 41. d5 $18 {[%emt 0:03:01][%cal Bd4d5,Bd5d6][%mdl 32]} Rg7 {[%emt 0:09:11] [#] Threatens to win with ...Bc5+.} 42. d6 {[%emt 0:00:36]} Rc8 {[%emt 0:01:07]} 43. Rxb7 {[%emt 0:01:09]} Qxa4 {[%emt 0:01:20]} 44. Rxg7+ {[%emt 0:00:58]} Bxg7 {[%emt 0:00:04]} 45. Qb7 {[%emt 0:06:16]} Rf8 {[%emt 0:04:34]} 46. Bh4 {[%emt 0:01:03]} Be8 {[%emt 0:00:09] Prevents d7.} 47. Qe7 {[%emt 0:02:20] Black must now prevent Rb7.} Bd7 {[%emt 0:00:57]} 48. Bf6 {[%emt 0:00:45] White mates.} Rxf6 {[%emt 0:02:44]} 49. exf6 {[%emt 0:00:24][%csl Gf6][%cal Re7g7]} Bf8 {[%emt 0:00:06]} 50. Rb8 {[%emt 0:00:16] Weighted Error Value: White=0.15 (very precise) /Black=0.51} 1-0

[Event "2nd Serbia Open Masters 2022"]
[Site "Novi Sad"]
[Date "2022.06.28"]
[Round "1.28"]
[White "Pajcin, Lav"]
[Black "Santiago, Yago De Moura"]
[Result "0-1"]
[ECO "C10"]
[WhiteElo "2262"]
[BlackElo "2498"]
[Annotator "TA"]
[PlyCount "120"]
[EventDate "2022.06.28"]
[EventType "swiss"]
[EventCountry "SRB"]
[SourceTitle "playchess.com"]
[Source "ChessBase"]
[SourceQuality "1"]
[TimeControl "40/5400+30:900+30"]

{[%evp 9,120,47,48,36,48,54,49,42,54,29,24,41,35,8,15,16,21,-8,-8,-26,-25,-22,-18,-40,-37,-42,-46,-56,-42,-47,-51,-62,-49,-124,-75,-62,-67,-56,-48,-184,-192,-199,-206,-210,-203,-209,-206,-200,-200,-208,-209,-208,-181,-172,-172,-172,-172,-237,-212,-208,-221,-262,-294,-361,-347,-352,-368,-339,-357,-357,-347,-305,0,-337,-335,-351,-344,-329,-336,-691,-497,-459,-314,-611,-588,-582,-584,-645,-652,-746,-690,-718,-728,-770,-704,-646,0,-767,-774,-759,-742,-721,-713,-677,-633,-1338,-771,-1802,-1713,-1939,-1906,-2246,-2105]} 1. e4 {[%emt 0:00:06]} e6 {[%emt 0:00:15]} 2. d4 {[%emt 0:00:16]} d5 {[%emt 0:00:09]} 3. Nc3 {[%emt 0:00:17]} a6 {[%emt 0:00:18]} 4. Bd3 {[%emt 0:05:44]} c5 {[%emt 0:02:29]} 5. dxc5 {[%emt 0:10:05]} Bxc5 {[%emt 0:00:31]} 6. exd5 {[%emt 0:01:07] C10: French with 3 Nc3: Unusual Black 3rd moves and 3...dxe4.} exd5 {[%emt 0:00:09] [#]} (6... Qf6 $2 7. Nf3 Qd8 8. Qe2 $18) 7. Nxd5 $1 {[%emt 0:02:41]} Bxf2+ {[%emt 0:00:11]} (7... Qxd5 $2 8. Bb5+ $1 {[%mdl 512]} Qc6 9. Bxc6+ $18) 8. Kxf2 {[%emt 0:00:04] White is slightly better.} ({Don't blunder} 8. Kf1 $2 Bxg1 9. c4 Bc5 $19) 8... Qxd5 {[%emt 0:00:08]} 9. Nf3 {[%emt 0:00:56]} Nf6 {[%emt 0:00:08]} 10. Re1+ {[%emt 0:10:27]} Be6 {[%emt 0:00:08]} 11. h3 {[%emt 0:03:28] [#]} Nc6 $146 {[%emt 0:01:00]} ({Predecessor:} 11... O-O 12. c4 Qd8 13. Be3 Nbd7 14. Qc2 h6 15. b4 Qc7 16. Kg1 Rac8 17. Rac1 Nh5 {1-0 (42) Heinemann,J (2224)-Krpovic,N (2098) Reykjavik 2015}) 12. c4 {[%emt 0:10:46]} Qh5 {[%emt 0:18:52]} 13. Ng5 {[%emt 0:16:57]} Qh4+ {[%emt 0:02:36]} 14. g3 {[%emt 0:03:37]} Qd4+ {[%emt 0:00:20]} 15. Be3 {[%emt 0:01:06]} Qxb2+ {[%emt 0:00:33]} 16. Re2 {[%emt 0:00:50]} Qa3 {[%emt 0:02:56]} 17. Nxe6 {[%emt 0:01:13]} fxe6 {[%emt 0:00:19]} 18. Qb3 {[%emt 0:04:23]} Qxb3 {[%emt 0:12:25]} 19. axb3 {[%emt 0:00:06]} O-O-O {[%emt 0:00:25]} 20. Rd2 {[%emt 0:04:24]} Nd4 {[%emt 0:01:38]} 21. Rad1 {[%emt 0:09:09]} (21. Ra3 $15) 21... Rhf8 {[%emt 0:30:01]} (21... Nxb3 $142 22. Rb2 Nd4) 22. Kg2 $17 {[%emt 0:03:31][%cal Od3h7]} Nxb3 {[%emt 0:00:33] Pair of Knights!} 23. Rb2 {[%emt 0:01:23]} Nd4 {[%emt 0:00:22]} 24. g4 {[%emt 0:03:14] [#]} (24. Bxh7 $1 $15 Nf5 25. Rxd8+ Rxd8 26. Bg5) 24... Nc6 $1 $19 {[%emt 0:03:16]} 25. Rbd2 {[%emt 0:01:43]} Ne5 {[%emt 0:11:35]} 26. Be2 {[%emt 0:00:07]} Rxd2 {[%emt 0:01:45]} 27. Rxd2 {[%emt 0:00:12]} Ne4 {[%emt 0:02:09] Inhibits Rd6.} 28. Rd4 {[%emt 0:00:52]} Nc3 {[%emt 0:00:17]} 29. Bf1 {[%emt 0:00:11]} Nf3 {[%emt 0:00:57]} 30. Rf4 {[%emt 0:02:34]} Rxf4 {[%emt 0:00:14]} 31. Bxf4 {[%emt 0:00:10][%mdl 4096] Endgame KBB-KNN} Nh4+ {[%emt 0:00:09]} 32. Kf2 {[%emt 0:02:21]} Ng6 {[%emt 0:00:16] Prevents Be5.} 33. Bh2 {[%emt 0:00:09]} (33. Bc1 $142) 33... Ne4+ {[%emt 0:05:54]} 34. Ke3 {[%emt 0:00:06] [#]} Nc5 {[%emt 0:00:15]} 35. Bg3 {[%emt 0:01:32]} e5 {[%emt 0:01:16]} 36. Be1 {[%emt 0:01:12]} Kc7 {[%emt 0:01:08]} 37. h4 {[%emt 0:00:48]} Nf4 {[%emt 0:00:45] Prevents Bg2.} 38. Bc3 {[%emt 0:00:55]} Kd6 {[%emt 0:00:08]} 39. Ba5 {[%emt 0:00:11]} Kc6 {[%emt 0:01:19]} 40. Bc3 {[%emt 0:00:00]} Kd6 {[%emt 0:00:00]} 41. Ba5 $1 {[%emt 0:00:26]} Nd7 {[%emt 0:07:54]} 42. Bb4+ {[%emt 0:01:39]} Ke6 {[%emt 0:00:12]} 43. Ba3 {[%emt 0:00:32]} b6 {[%emt 0:00:44]} 44. Ke4 $2 {[%emt 0:01:26]} (44. h5) 44... Nc5+ {[%emt 0:00:07]} 45. Ke3 {[%emt 0:00:07]} a5 {[%emt 0:00:04][%cal Ba6a5,Ba5a4][%mdl 32] aiming for ...g6.} 46. Bb2 $2 {[%emt 0:00:45]} (46. h5) 46... g6 {[%emt 0:00:38]} 47. Ba3 {[%emt 0:00:40]} h5 {[%emt 0:00:16]} 48. gxh5 {[%emt 0:00:25]} gxh5 {[%emt 0:00:06]} 49. Bc1 {[%emt 0:00:16]} Kf5 {[%emt 0:00:25]} 50. Bb2 {[%emt 0:00:16]} a4 {[%emt 0:00:56]} 51. Ba3 {[%emt 0:03:13]} Nb3 {[%emt 0:03:40]} 52. Bb4 {[%emt 0:01:17]} Nc5 {[%emt 0:00:26]} 53. Ba3 {[%emt 0:01:06]} Kg4 {[%emt 0:00:17] Black is clearly winning.} 54. Bb2 {[%emt 0:00:15]} Ng6 {[%emt 0:00:18]} 55. Be2+ {[%emt 0:00:41]} Kxh4 {[%emt 0:00:11]} 56. Bd1 {[%emt 0:00:03]} Kg5 {[%emt 0:01:20] ...h4 is the strong threat.} 57. Bc1 {[%emt 0:00:38]} h4 {[%emt 0:00:28]} 58. Kf2+ {[%emt 0:00:23]} Kf5 {[%emt 0:00:22]} 59. Bc2+ {[%emt 0:00:08]} e4 {[%emt 0:00:14] White must now prevent ...Nd3+.} 60. Ba3 {[%emt 0:00:50]} Ne5 {[%emt 0:00:13] Weighted Error Value: White=0.32/Black=0.13 (very precise)} 0-1

[Event "2nd Serbia Open Masters 2022"]
[Site "Novi Sad"]
[Date "2022.06.28"]
[Round "1.29"]
[White "Makhnev, Denis"]
[Black "Rabrenovic, Vladan"]
[Result "1-0"]
[ECO "E08"]
[WhiteElo "2505"]
[BlackElo "2277"]
[Annotator "TA"]
[PlyCount "95"]
[EventDate "2022.06.28"]
[EventType "swiss"]
[EventCountry "SRB"]
[SourceTitle "playchess.com"]
[Source "ChessBase"]
[SourceQuality "1"]
[TimeControl "40/5400+30:900+30"]

{[%evp 22,95,32,47,43,46,68,42,40,54,77,64,70,72,92,78,133,134,195,187,189,174,158,167,160,160,160,104,160,160,177,166,182,146,146,145,180,170,248,175,186,179,244,254,575,280,272,270,276,263,270,254,254,231,270,260,260,258,253,221,296,270,528,525,516,510,614,516,520,520,515,500,556,552,501,467]} 1. d4 {[%emt 0:00:04]} d5 {[%emt 0:01:27]} 2. c4 {[%emt 0:00:14]} e6 {[%emt 0:00:14]} 3. Nf3 {[%emt 0:00:10]} Nf6 {[%emt 0:00:08]} 4. g3 {[%emt 0:00:17]} Bb4+ {[%emt 0:00:14]} 5. Bd2 {[%emt 0:00:10]} Be7 {[%emt 0:00:08]} 6. Bg2 {[%emt 0:00:16]} O-O {[%emt 0:00:10]} 7. O-O {[%emt 0:00:15]} c6 {[%emt 0:00:07]} 8. Qc2 {[%emt 0:00:44]} Nbd7 {[%emt 0:00:16]} 9. Bf4 {[%emt 0:00:42]} b6 {[%emt 0:04:18]} 10. Rd1 {[%emt 0:00:53]} Bb7 {[%emt 0:02:55]} 11. Ne5 {[%emt 0:01:01] 11.Ne5 is better than 11.Nc3.} Rc8 {[%emt 0:06:16]} 12. Nc3 {[%emt 0:00:16]} Nxe5 {[%emt 0:01:57] E08: Closed Catalan: Main Line: 7 Qc2.} 13. dxe5 {[%emt 0:00:12]} Nd7 {[%emt 0:00:16]} 14. cxd5 {[%emt 0:00:11]} cxd5 {[%emt 0:02:43] White is slightly better.} 15. e4 {[%emt 0:00:11]} d4 {[%emt 0:43:41]} 16. Rxd4 {[%emt 0:00:14] Threatens to win with Qd2.} Qc7 {[%emt 0:00:07]} 17. Qe2 {[%emt 0:09:33] And now Nb5 would win.} a6 {[%emt 0:07:25] [#] Against Nb5} 18. Rc1 $146 {[%emt 0:40:17] Strongly threatening Qd1.} ({Predecessor:} 18. Rad1 Nxe5 19. h4 b5 20. a3 h6 21. Qh5 Bf6 22. Rd6 Qc5 23. Be3 Qc7 24. Bf4 Qc5 25. Be3 Qc7 {½-½ (25) Swinkels,R (2486)-Ginsburg,G (2443) Germany 2018}) 18... Bc5 {[%emt 0:06:27] [#]} (18... Nxe5 $142 19. Na4 Qxc1+ 20. Bxc1 Rxc1+ 21. Rd1 Rxd1+ 22. Qxd1 Rd8) 19. Rdd1 $1 $16 {[%emt 0:00:46][%cal Ob2b4]} a5 {[%emt 0:12:10]} (19... Qd8 $16 20. a3 b5) 20. Nb5 $18 {[%emt 0:01:29]} Qd8 {[%emt 0:00:15]} 21. Nd6 {[%emt 0:03:52]} Rc7 {[%emt 0:00:08]} 22. a3 {[%emt 0:01:06][%cal Ob2b4]} Bc6 {[%emt 0:00:43]} 23. Rc3 {[%emt 0:12:46]} a4 {[%emt 0:00:22]} 24. Nb5 {[%emt 0:01:27] 0x0.001e6a788956dp-1022s more active pieces.} (24. Rc2 $142) 24... Rb7 {[%emt 0:00:36]} ({Black should play} 24... Bxb5 25. Qxb5 g5) 25. h4 $16 {[%emt 0:00:53][%cal Bh2h4,Bh4h5][%mdl 32]} Qa8 {[%emt 0:02:59]} 26. Nd6 {[%emt 0:01:52]} Ra7 {[%emt 0:02:12]} 27. h5 {[%emt 0:00:29]} h6 {[%emt 0:01:03]} 28. Kh2 {[%emt 0:02:58]} Ra5 {[%emt 0:00:30]} 29. g4 $36 {[%emt 0:01:02][%mdl 2048] White has strong initiative.} f6 {[%emt 0:02:22]} (29... Bxd6 $142 30. Rxd6 (30. exd6 Rc5 $16) 30... Rc5 31. Rxc5 Nxc5) 30. exf6 {[%emt 0:01:32]} Nxf6 {[%emt 0:01:08]} 31. Bg3 {[%emt 0:00:08]} Bxd6 {[%emt 0:01:56]} (31... Ra7 $142 32. Kh3 Kh8) 32. Bxd6 $18 {[%emt 0:02:20]} Bxe4 $2 {[%emt 0:00:29] [#]} (32... Bb5 {is more resistant.} 33. Qf3 Rf7) 33. f3 {[%emt 0:00:21]} (33. Bxf8 $142 Kxf8 34. Bxe4 Qxe4 35. Rc8+ Ke7 36. Rc7+ Ke8 37. Qxe4 Nxe4 38. Rdd7) 33... Bd5 {[%emt 0:00:41]} 34. Bxf8 {[%emt 0:00:45]} Qxf8 {[%emt 0:00:01]} 35. Rdc1 {[%emt 0:00:22] aiming for Rc8.} Rc5 {[%emt 0:00:31] Inhibits Rc8.} 36. Rxc5 {[%emt 0:02:25]} bxc5 {[%emt 0:00:01]} 37. Qe5 {[%emt 0:02:11]} Qa8 {[%emt 0:00:40]} 38. Qf4 {[%emt 0:05:28]} ({Not} 38. Rxc5 Nd7 39. Qe3 Nxc5 40. Qxc5 Qb8+ 41. Kh3 Qxb2 $11) 38... c4 {[%emt 0:00:58]} 39. Re1 {[%emt 0:01:18]} Qb7 {[%emt 0:00:14]} 40. Re2 {[%emt 0:00:00]} Nh7 {[%emt 0:00:00]} 41. Kg3 {[%emt 0:00:54]} Ng5 $2 {[%emt 0:00:46]} (41... Nf6 42. Qe3 Qc8) 42. Qe3 {[%emt 0:00:14] White is clearly winning.} Nh7 {[%emt 0:05:26]} 43. f4 {[%emt 0:00:48]} Nf6 {[%emt 0:00:17]} 44. Qxe6+ {[%emt 0:01:10]} Bxe6 {[%emt 0:01:18]} 45. Bxb7 {[%emt 0:00:09]} Bxg4 {[%emt 0:00:04]} 46. Bf3 {[%emt 0:00:38]} Bd7 {[%emt 0:01:58]} 47. Re5 {[%emt 0:00:14]} Kf7 {[%emt 0:00:49]} 48. Be2 {[%emt 0:15:05] Weighted Error Value: White=0.15 (very precise) /Black=0.41} 1-0